fUSD/lending_fUSD_20241109
["ID","MTS","AMOUNT","RATE_DAILY","PERIOD"]
[341744657,1731181843955,-500.0,0.00014249,2]
[341744658,1731181843964,-652.93856347,0.00015,2]
[341744659,1731181846360,-347.14482896,0.00014249,2]
[341744660,1731181846374,-152.85517104,0.00014249,2]
[341744661,1731181846384,-500.0,0.00014249,2]
[341744662,1731181846394,-500.0,0.00014249,2]
[341744663,1731181846404,-500.0,0.00014249,2]
[341744664,1731181846414,-500.0,0.00014249,2]
[341744665,1731181846424,-500.0,0.00014249,2]
[341744666,1731181846433,-500.0,0.00014249,2]
[341744667,1731181846443,-500.0,0.00014249,2]
[341744668,1731181846454,-500.0,0.00014249,2]
[341744669,1731181846464,-500.0,0.00014249,2]
[341744670,1731181846475,-500.0,0.00014249,2]
[341744671,1731181846485,-500.0,0.00014249,2]
[341744672,1731181846495,-500.0,0.00014249,2]
[341744673,1731181846505,-500.0,0.00014249,2]
[341744674,1731181846516,-500.0,0.00014249,2]
[341744675,1731181846526,-500.0,0.00014249,2]
[341744676,1731181846535,-500.0,0.00014249,2]
[341744677,1731181846545,-500.0,0.00014249,2]
[341744678,1731181846554,-500.0,0.00014249,2]
[341744679,1731181846564,-500.0,0.00014249,2]
[341744680,1731181846574,-500.0,0.00014249,2]
[341744681,1731181846584,-442.94905752,0.00014249,2]
[341744682,1731181846595,-361788.63024604,0.00015,2]
[341744683,1731181846611,-7644.61851069,0.00015,2]
[341744684,1731181846623,-3598.70920631,0.00015,2]
[341744685,1731181846644,-762.500848,0.00015,2]
[341744686,1731181846717,-375.85517104,0.00015,2]
[341744687,1731181846729,-64196.08567509,0.00015,2]
[341744688,1731181846741,-6315.39997728,0.00015,2]
[341744689,1731181846762,-7627.49744114,0.00015,2]
[341744690,1731181876419,150.0,0.00027,60]
[341744692,1731182104183,800.0,0.00026986,120]
[341744694,1731182269797,-3202.82,0.00013842,2]
[341744695,1731182269837,-150.0,0.00013842,2]
[341744696,1731182269879,-1852.42,0.00013845,2]
[341744697,1731182269921,-160.51,0.00013847,2]
[341744698,1731182269961,-250.0,0.0001385,2]
[341744699,1731182270000,-26129.91003735,0.00013852,2]
[341744700,1731182270040,-2171.03,0.00013852,2]
[341744701,1731182270081,-520.24,0.00013867,2]
[341744702,1731182270122,-1176.38,0.0001387,2]
[341744703,1731182270163,-2233.85,0.00013968,2]
[341744704,1731182270204,-250.0,0.00014096,2]
[341744705,1731182270244,-227.05,0.00014096,2]
[341744706,1731182270285,-301.31,0.00014247,2]
[341744707,1731182270328,-1569.2611,0.00014679,2]
[341744708,1731182270374,-150.0,0.00014728,2]
[341744709,1731182270415,-1500.0,0.00014736,2]
[341744710,1731182270455,-1500.0,0.00014741,2]
[341744711,1731182270499,-150.0,0.00014743,2]
[341744712,1731182270540,-150.0,0.00014747,2]
[341744713,1731182270582,-150.0,0.0001475,2]
[341744714,1731182270963,-150.0,0.00014751,2]
[341744715,1731182270996,-150.0,0.00014752,2]
[341744716,1731182271020,-150.0,0.00014754,2]
[341744717,1731182271043,-150.0,0.00014758,2]
[341744718,1731182271067,-150.0,0.00014765,2]
[341744719,1731182271091,-150.0,0.00014769,2]
[341744720,1731182271116,-150.0,0.00014769,2]
[341744721,1731182271141,-150.0,0.00014772,2]
[341744722,1731182271170,-150.0,0.00014773,2]
[341744723,1731182271193,-150.0,0.00014773,2]
[341744724,1731182271219,-150.0,0.00014774,2]
[341744725,1731182271248,-150.0,0.00014781,2]
[341744726,1731182271274,-159.3,0.00014782,2]
[341744727,1731182271300,-150.0,0.00014788,2]
[341744728,1731182271325,-150.0,0.00014792,2]
[341744729,1731182271349,-159.3,0.00014794,2]
[341744730,1731182271373,-150.0,0.00014796,2]
[341744731,1731182271396,-150.0,0.00014801,2]
[341744732,1731182271419,-150.0,0.00014801,2]
[341744733,1731182271442,-159.3,0.00014805,2]
[341744734,1731182271465,-150.0,0.00014805,2]
[341744735,1731182271488,-150.0,0.00014806,2]
[341744736,1731182271512,-150.0,0.00014807,2]
[341744737,1731182271537,-150.0,0.00014808,2]
[341744738,1731182271562,-150.0,0.00014809,2]
[341744739,1731182271586,-150.0,0.0001481,2]
[341744740,1731182271611,-159.3,0.00014816,2]
[341744741,1731182271636,-150.0,0.0001482,2]
[341744742,1731182271660,-150.0,0.0001482,2]
[341744743,1731182271684,-150.0,0.0001482,2]
[341744744,1731182271709,-150.0,0.00014822,2]
[341744745,1731182271733,-150.0,0.00014822,2]
[341744746,1731182271760,-159.3,0.00014828,2]
[341744747,1731182271784,-150.0,0.00014828,2]
[341744748,1731182271811,-150.0,0.00014828,2]
[341744749,1731182271835,-150.0,0.00014828,2]
[341744750,1731182271861,-150.0,0.00014828,2]
[341744751,1731182271887,-150.0,0.00014829,2]
[341744752,1731182271909,-1500.0,0.00014829,2]
[341744753,1731182271949,-150.0,0.00014831,2]
[341744754,1731182271980,-150.0,0.00014833,2]
[341744755,1731182272007,-150.0,0.00014833,2]
[341744756,1731182272035,-150.0,0.00014837,2]
[341744757,1731182272062,-150.0,0.00014838,2]
[341744758,1731182272089,-159.3,0.00014839,2]
[341744759,1731182272117,-150.0,0.0001484,2]
[341744760,1731182272143,-150.0,0.00014843,2]
[341744761,1731182272177,-150.0,0.00014845,2]
[341744762,1731182272205,-150.0,0.00014848,2]
[341744763,1731182272233,-545.73708298,0.00014849,2]
[341744764,1731182272265,-150.0,0.00014849,2]
[341744765,1731182272293,-159.3,0.0001485,2]
[341744766,1731182272322,-150.0,0.00014852,2]
[341744767,1731182272347,-150.0,0.00014855,2]
[341744768,1731182272380,-150.0,0.0001486,2]
[341744769,1731182272407,-150.0,0.00014861,2]
[341744770,1731182272434,-159.3,0.00014862,2]
[341744771,1731182272459,-150.0,0.00014862,2]
[341744772,1731182272487,-150.0,0.00014864,2]
[341744773,1731182272514,-150.0,0.00014865,2]
[341744774,1731182272540,-150.0,0.00014865,2]
[341744775,1731182272565,-1500.0,0.00014866,2]
[341744776,1731182272590,-649.53792969,0.00014866,2]
[341744777,1731182272618,-150.0,0.00014866,2]
[341744778,1731182272645,-150.0,0.00014868,2]
[341744779,1731182272672,-150.0,0.00014871,2]
[341744780,1731182272698,-159.3,0.00014873,2]
[341744781,1731182272724,-150.0,0.00014876,2]
[341744782,1731182272750,-150.0,0.00014877,2]
[341744783,1731182272776,-150.0,0.00014878,2]
[341744784,1731182272802,-150.0,0.0001488,2]
[341744785,1731182272828,-150.0,0.00014881,2]
[341744786,1731182272856,-150.0,0.00014884,2]
[341744787,1731182272882,-159.3,0.00014884,2]
[341744788,1731182272908,-150.0,0.00014891,2]
[341744789,1731182272934,-150.0,0.00014893,2]
[341744790,1731182272961,-150.0,0.00014893,2]
[341744791,1731182272989,-1500.0,0.00014894,2]
[341744792,1731182273014,-159.3,0.00014896,2]
[341744793,1731182273040,-500.0,0.00014898,2]
[341744794,1731182273064,-197.43979992,0.00014898,2]
[341744795,1731182273090,-212.61176235,0.00014898,2]
[341744796,1731182273116,-500.0,0.00014898,2]
[341744797,1731182273141,-500.0,0.00014898,2]
[341744798,1731182273175,-369.29490575,0.00014898,2]
[341744799,1731182273201,-150.0,0.00014898,2]
[341744800,1731182273228,-150.0,0.00014898,2]
[341744801,1731182273253,-48401.2231,0.00014899,2]
[341744802,1731182273278,-163.099122,0.000149,2]
[341744803,1731182273303,-67346.86741121,0.000149,2]
[341744804,1731182273328,-8146.6769,0.000149,2]
[341744805,1731182273356,-150.0,0.000149,2]
[341744806,1731182273382,-1697.10247208,0.000149,2]
[341744807,1731182273407,-2664.78072021,0.000149,2]
[341744808,1731182273431,-1385.095,0.000149,2]
[341744809,1731182273479,-150.0,0.00014904,2]
[341744810,1731182273506,-150.0,0.00014907,2]
[341744811,1731182273534,-159.3,0.00014907,2]
[341744812,1731182273582,-159.07733668,0.0001491,2]
[341744813,1731182273609,-150.0,0.00014911,2]
[341744814,1731182273636,-150.0,0.00014913,2]
[341744815,1731182273663,-150.0,0.00014913,2]
[341744816,1731182273689,-150.0,0.00014915,2]
[341744817,1731182273958,-159.3,0.00014919,2]
[341744818,1731182273984,-150.0,0.00014919,2]
[341744819,1731182274009,-150.0,0.00014921,2]
[341744820,1731182274035,-150.0,0.00014921,2]
[341744821,1731182274060,-150.0,0.00014921,2]
[341744822,1731182274084,-150.0,0.00014923,2]
[341744823,1731182274109,-150.0,0.00014925,2]
[341744824,1731182274133,-150.0,0.00014928,2]
[341744825,1731182274162,-150.0,0.00014929,2]
[341744826,1731182274187,-159.3,0.0001493,2]
[341744827,1731182274212,-150.0,0.00014934,2]
[341744828,1731182274239,-150.0,0.00014936,2]
[341744829,1731182274265,-150.0,0.00014939,2]
[341744830,1731182274290,-150.0,0.00014945,2]
[341744831,1731182274314,-150.0,0.00014948,2]
[341744832,1731182274339,-150.0,0.00014948,2]
[341744833,1731182274367,-150.0,0.00014956,2]
[341744834,1731182274393,-150.0,0.00014957,2]
[341744835,1731182274417,-150.0,0.00014958,2]
[341744836,1731182274442,-150.0,0.00014959,2]
[341744837,1731182274466,-150.0,0.00014961,2]
[341744838,1731182274491,-150.0,0.00014964,2]
[341744839,1731182274517,-150.0,0.00014964,2]
[341744840,1731182274542,-150.0,0.00014965,2]
[341744841,1731182274565,-150.0,0.00014971,2]
[341744842,1731182274589,-176.25255881,0.00014973,2]
[341744843,1731182274614,-150.0,0.00014975,2]
[341744844,1731182274640,-150.0,0.00014975,2]
[341744845,1731182274667,-150.0,0.00014977,2]
[341744846,1731182274692,-150.0,0.00014981,2]
[341744847,1731182274717,-150.0,0.00014982,2]
[341744848,1731182274741,-150.0,0.00014985,2]
[341744849,1731182274767,-150.0,0.00014989,2]
[341744850,1731182274791,-150.0,0.00014991,2]
[341744851,1731182274816,-193.48962122,0.00014992,2]
[341744852,1731182274841,-150.0,0.00014997,2]
[341744853,1731182274864,-326.05123222,0.00014999,2]
[341744854,1731182274888,-179.13922176,0.00014999,2]
[341744855,1731182274911,-500.0,0.00014999,2]
[341744856,1731182274936,-500.0,0.00014999,2]
[341744857,1731182274960,-500.0,0.00014999,2]
[341744858,1731182274985,-500.0,0.00014999,2]
[341744859,1731182275010,-500.0,0.00014999,2]
[341744860,1731182275035,-500.0,0.00014999,2]
[341744861,1731182275060,-500.0,0.00014999,2]
[341744862,1731182275085,-500.0,0.00014999,2]
[341744863,1731182275110,-500.0,0.00014999,2]
[341744864,1731182275134,-500.0,0.00014999,2]
[341744865,1731182275161,-500.0,0.00014999,2]
[341744866,1731182275185,-500.0,0.00014999,2]
[341744867,1731182275209,-500.0,0.00014999,2]
[341744868,1731182275234,-233.30334505,0.00014999,2]
[341744869,1731182275258,-500.0,0.00014999,2]
[341744870,1731182275282,-500.0,0.00014999,2]
[341744871,1731182275306,-499.59121664,0.00014999,2]
[341744872,1731182275331,-500.0,0.00014999,2]
[341744873,1731182275356,-500.0,0.00014999,2]
[341744874,1731182275381,-500.0,0.00014999,2]
[341744875,1731182275406,-500.0,0.00014999,2]
[341744876,1731182275430,-500.0,0.00014999,2]
[341744877,1731182275454,-500.0,0.00014999,2]
[341744878,1731182275479,-1915328.64812408,0.00015,2]
[341744879,1731182305555,150.0,0.00011329,2]
[341744880,1731182305576,0.91,0.00011329,2]
[341744881,1731182364213,150.0,0.00012008,2]
[341744882,1731182364236,150.0,0.00012008,2]
[341744883,1731182364259,150.0,0.00012008,2]
[341744884,1731182364281,150.0,0.00012008,2]
[341744885,1731182364302,150.0,0.00012008,2]
[341744886,1731182364327,150.0,0.00012008,2]
[341744887,1731182364348,150.0,0.00012008,2]
[341744888,1731182364371,150.0,0.00012008,2]
[341744889,1731182364393,150.0,0.00012008,2]
[341744890,1731182364417,150.0,0.00012008,2]
[341744891,1731182364438,150.0,0.00012008,2]
[341744892,1731182364462,83.62,0.00012008,2]
[341744893,1731182403926,800.0,0.00026986,120]
[341744894,1731182405863,4434.81122034,0.0001395,21]
[341744896,1731182529236,319.03,0.00026986,120]
[341744897,1731182661135,-189.76713771,0.00013459,2]
[341744898,1731182661161,-829.98789516,0.00013459,2]
[341744899,1731182661186,-15229.366735,0.00013491,2]
[341744900,1731182661212,-370.99,0.00013739,2]
[341744901,1731182661237,-7072.35568075,0.00013753,2]
[341744902,1731182661264,-496.43,0.00013753,2]
[341744903,1731182661292,-1700.74,0.00013783,2]
[341744904,1731182661320,-15481.73,0.00013787,2]
[341744905,1731182661346,-2759.03,0.00013792,2]
[341744906,1731182661369,-2000.0,0.0001383,2]
[341744907,1731182661396,-1000.0,0.0001384,2]
[341744908,1731182661421,-2177.68,0.00013868,2]
[341744909,1731182661444,-200.0,0.00013952,2]
[341744910,1731182687861,5191.92255138,0.00013862,2]
[341744937,1731182832193,3005.3919784,0.00027,120]
[341744941,1731182969618,150.0,0.00011003,2]
[341744942,1731182969640,0.91,0.00011003,2]
[341744944,1731183032098,-250.0,0.00013728,2]
[341744945,1731183032112,-250.0,0.00013754,2]
[341744946,1731183032126,-325.17,0.00013777,2]
[341744947,1731183032141,-151.51107312,0.00013794,2]
[341744948,1731183032186,-148.48892688,0.00013794,2]
[341744949,1731183032202,-179.94587322,0.00013795,2]
[341744950,1731183032222,-2285.717988,0.00013795,2]
[341744951,1731183032322,-6744.82878175,0.00013795,2]
[341744952,1731183032340,-2553.75840704,0.00013795,2]
[341744953,1731183032357,-3343.96097844,0.00013795,2]
[341744954,1731183032375,-4631.84828455,0.00013795,2]
[341744955,1731183032389,-170.0,0.00013795,2]
[341744958,1731183032404,-200.0,0.00013818,2]
[341744959,1731183032419,-3798.3886708,0.00013844,2]
[341744960,1731183032543,-171.7713292,0.00013844,2]
[341744961,1731183032556,-4414.8463788,0.00013862,2]
[341744969,1731183038657,-10886.30080138,0.00013654,2]
[341744971,1731183038666,-3331.81360299,0.00013862,2]
[341744978,1731183038732,-10961.41746683,0.00013862,2]
[341744980,1731183038743,-219.58,0.00013862,2]
[341744982,1731183038752,-150.0,0.00013946,2]
[341744984,1731183038761,-313.21,0.00013947,2]
[341744986,1731183038770,-150.99,0.00013947,2]
[341744987,1731183038779,-7668.67,0.00013947,2]
[341744989,1731183038789,-938.66,0.00014161,2]
[341744992,1731183038798,-1733.62,0.00014272,2]
[341744994,1731183038808,-496.43,0.00014441,2]
[341744996,1731183038817,-393.97229507,0.00014602,2]
[341744998,1731183038827,-150.0,0.00014739,2]
[341745000,1731183038836,-150.0,0.00014741,2]
[341745001,1731183038845,-150.0,0.00014743,2]
[341745003,1731183038854,-150.0,0.00014748,2]
[341745006,1731183038863,-150.0,0.00014766,2]
[341745007,1731183038872,-150.0,0.00014772,2]
[341745009,1731183038881,-150.0,0.00014774,2]
[341745011,1731183038890,-150.0,0.00014778,2]
[341745013,1731183038900,-150.0,0.00014781,2]
[341745015,1731183038909,-150.0,0.00014788,2]
[341745017,1731183038918,-5537.7097,0.000148,2]
[341745019,1731183038927,-150.0,0.00014814,2]
[341745021,1731183038937,-150.0,0.00014817,2]
[341745023,1731183038946,-150.0,0.00014867,2]
[341745025,1731183038955,-150.0,0.00014884,2]
[341745028,1731183038966,-150.0,0.00014896,2]
[341745030,1731183038975,-171.57046906,0.000149,2]
[341745032,1731183038985,-628.4596138,0.000149,2]
[341745034,1731183038994,-482.3307,0.000149,2]
[341745036,1731183039003,-12015.3316225,0.000149,2]
[341745037,1731183039012,-713.83790163,0.000149,2]
[341745040,1731183039021,-150.0,0.0001492,2]
[341745042,1731183039031,-150.0,0.00014924,2]
[341745044,1731183039042,-150.0,0.0001493,2]
[341745046,1731183039054,-213.70172856,0.00014943,2]
[341745048,1731183039064,-150.0,0.00014948,2]
[341745049,1731183039076,-150.0,0.00014955,2]
[341745052,1731183039085,-150.0,0.00014957,2]
[341745054,1731183039094,-150.0,0.00014957,2]
[341745056,1731183039103,-150.0,0.00014965,2]
[341745058,1731183039113,-150.0,0.00014969,2]
[341745060,1731183039122,-150.0,0.00014986,2]
[341745062,1731183039132,-1721.28029214,0.0001499,2]
[341745064,1731183039140,-432.57950405,0.0001499,2]
[341745065,1731183039151,-432.57950405,0.0001499,2]
[341745067,1731183039162,-432.57950405,0.0001499,2]
[341745069,1731183039171,-150.0,0.00014991,2]
[341745072,1731183039182,-150.0,0.00014993,2]
[341745074,1731183039193,-180.38947679,0.00014998,2]
[341745076,1731183039203,-500.0,0.00014998,2]
[341745077,1731183039212,-500.0,0.00014998,2]
[341745080,1731183039226,-500.0,0.00014998,2]
[341745081,1731183039236,-171.92949057,0.00014998,2]
[341745082,1731183039245,-459.96,0.00014999,2]
[341745083,1731183039254,-984.87677365,0.00014999,2]
[341745084,1731183039263,-500.0,0.00014999,2]
[341745085,1731183039272,-874862.01374982,0.00015,2]
[341745086,1731183039497,-981.32717672,0.00015,2]
[341745087,1731183039651,-762.33,0.00015,2]
[341745088,1731183040297,-380.77791938,0.00015,2]
[341745090,1731183043030,-3594.8924027,0.00015,2]
[341745091,1731183043089,-4370.95796411,0.00015,2]
[341745092,1731183043100,-5985.66173019,0.00015,2]
[341745093,1731183043252,-13824.62096071,0.00015,2]
[341745108,1731183047836,-9670.91878994,0.00015,2]
[341745109,1731183047883,-491651.03793858,0.00015,2]
[341745110,1731183196691,150.0,0.00027,60]
[341745111,1731183212915,150.0,0.00016,7]
[341745112,1731183214471,-150.0,0.000129,2]
[341745113,1731183214962,-150.0,0.000129,2]
[341745114,1731183215504,-150.0,0.000129,2]
[341745115,1731183216014,-150.0,0.000129,2]
[341745116,1731183216580,-150.0,0.000129,2]
[341745117,1731183217405,-150.0,0.000129,2]
[341745118,1731183217957,-150.0,0.000129,2]
[341745119,1731183218976,-150.0,0.000129,2]
[341745120,1731183219849,-150.0,0.000129,2]
[341745121,1731183220832,-150.0,0.000129,2]
[341745122,1731183221352,-60.25,0.000129,2]
[341745123,1731183312099,800.0,0.00026986,120]
[341745124,1731183485944,567.53,0.00027,60]
[341745127,1731183724652,150.0,0.00011496,2]
[341745128,1731183724673,0.91,0.00011496,2]
[341745130,1731183925696,150.0,0.000108,2]
[341745131,1731183925718,150.0,0.000108,2]
[341745132,1731183925739,150.0,0.000108,2]
[341745133,1731183925766,150.0,0.000108,2]
[341745134,1731183925788,150.0,0.000108,2]
[341745135,1731183925812,150.0,0.000108,2]
[341745136,1731183925834,77.24689328,0.000108,2]
[341745137,1731183935014,150.0,0.0001,2]
[341745138,1731183935036,0.363766,0.0001,2]
[341745139,1731183936821,149.636234,9e-05,2]
[341745140,1731183936844,150.0,9e-05,2]
[341745141,1731183936866,150.0,9e-05,2]
[341745142,1731183936887,150.0,9e-05,2]
[341745143,1731183936909,150.0,9e-05,2]
[341745144,1731183936935,150.0,9e-05,2]
[341745145,1731183936956,150.0,9e-05,2]
[341745146,1731183936979,150.0,9e-05,2]
[341745147,1731183937001,150.0,9e-05,2]
[341745148,1731183937022,150.0,9e-05,2]
[341745149,1731183937044,150.0,9e-05,2]
[341745150,1731183937066,142.7460153,9e-05,2]
[341745151,1731183955995,150.0,6.94e-05,2]
[341745152,1731183956017,150.0,6.94e-05,2]
[341745153,1731183956038,150.0,6.94e-05,2]
[341745154,1731183956059,294.88709142,6.94e-05,2]
[341745155,1731183956088,1655.11290858,6.94e-05,2]
[341745156,1731183970271,200.0,0.00026986,120]
[341745157,1731184026324,-1482.23,0.00012383,2]
[341745158,1731184026377,-269.15558729,0.00014,2]
[341745159,1731184026427,-3083.66,0.00014133,2]
[341745160,1731184026478,-1000.0,0.00014216,2]
[341745161,1731184026531,-250.0,0.00014281,2]
[341745162,1731184026583,-31455.35661293,0.00014281,2]
[341745163,1731184026639,-362.1,0.00014308,2]
[341745164,1731184026694,-250.0,0.00014368,2]
[341745165,1731184026745,-160.51,0.000144,2]
[341745166,1731184026796,-1482.23,0.00014647,2]
[341745167,1731184026849,-300.0,0.00014666,2]
[341745168,1731184027126,-150.0,0.00014666,2]
[341745169,1731184027180,-23900.0,0.00014667,2]
[341745170,1731184027231,-200.0,0.00014678,2]
[341745171,1731184027284,-412.05939426,0.00014678,2]
[341745172,1731184027338,-850.37,0.00014746,2]
[341745173,1731184027388,-1013.0,0.000148,2]
[341745174,1731184027439,-1081.0,0.000148,2]
[341745175,1731184027490,-1000.0,0.000148,2]
[341745176,1731184027541,-1000.0,0.000148,2]
[341745177,1731184027595,-1000.0,0.000148,2]
[341745178,1731184027646,-169.76846182,0.000149,2]
[341745179,1731184027699,-150.99,0.000149,2]
[341745180,1731184027750,-1000.0,0.000149,2]
[341745181,1731184027803,-1000.0,0.000149,2]
[341745182,1731184027907,-187.31918546,0.000149,2]
[341745183,1731184028025,-2000.0,0.00014902,2]
[341745184,1731184028131,-307.92,0.00014902,2]
[341745185,1731184028238,-176.38,0.00014909,2]
[341745186,1731184028342,-367.968,0.00014945,2]
[341745187,1731184028488,-185.7699434,0.00014988,2]
[341745188,1731184028610,-8822.8303637,0.00014989,2]
[341745189,1731184028713,-202.71243954,0.0001499,2]
[341745190,1731184028823,-9867.482751,0.0001499,2]
[341745191,1731184028972,-10912.1351383,0.0001499,2]
[341745192,1731184029081,-11956.7875256,0.0001499,2]
[341745193,1731184029182,-13001.4399129,0.0001499,2]
[341745194,1731184029281,-500.0,0.00014999,2]
[341745195,1731184029376,-550.0,0.00014999,2]
[341745196,1731184029757,-500.0,0.00014999,2]
[341745197,1731184029813,-500.0,0.00014999,2]
[341745198,1731184029868,-261.61491418,0.00014999,2]
[341745199,1731184029918,-160.42654901,0.00014999,2]
[341745200,1731184029970,-457.2593476,0.00014999,2]
[341745201,1731184030020,-500.0,0.00014999,2]
[341745202,1731184030073,-8302559.52387301,0.00015,2]
[341745203,1731184080711,1800.0,0.0001,2]
[341745204,1731184090960,4659.82005371,0.00013,4]
[341745227,1731184230104,-561.19,0.0001285,2]
[341745230,1731184232138,-225.87067029,0.0001285,2]
[341745232,1731184232147,-306.69805978,0.000129,2]
[341745233,1731184232156,-601.02362673,0.00013,2]
[341745234,1731184232165,-769.90049048,0.0001305,2]
[341745235,1731184232174,-600.0,0.000135,2]
[341745236,1731184232183,-150.0,0.00013609,2]
[341745237,1731184232193,-297.86,0.00014074,2]
[341745238,1731184232204,-300.0,0.00014299,2]
[341745239,1731184232213,-2178.6915,0.000143,2]
[341745240,1731184232222,-8086.88932699,0.0001439,2]
[341745241,1731184232231,-2.28319674,0.00014499,2]
[341745242,1731184232265,-147.71680326,0.00014499,2]
[341745243,1731184232275,-4758.47367969,0.000145,3]
[341745244,1731184232286,-2411.74993303,0.000145,3]
[341745245,1731184232298,-1198.16775,0.000145,3]
[341745246,1731184232310,-2368.70357247,0.000145,3]
[341745247,1731184232338,-607.9791,0.000145,3]
[341745248,1731184232368,-40590.37013936,0.000145,3]
[341745249,1731184232429,-2910.50407077,0.000145,3]
[341745250,1731184232486,-285.29701288,0.000145,3]
[341745251,1731184232499,-1540.14980589,0.000145,3]
[341745252,1731184232511,-11812.66138702,0.000145,3]
[341745253,1731184233299,-190.52,0.000145,3]
[341745254,1731184234315,-150.86,0.000145,3]
[341745256,1731184238043,-297.86,0.000145,3]
[341745261,1731184238225,-3890.47033098,0.000145,3]
[341745263,1731184238603,-24217.24229767,0.000145,3]
[341745264,1731184238612,-425.18,0.00014558,2]
[341745265,1731184238622,-796.14,0.00014615,2]
[341745266,1731184238631,-297.86,0.00014778,2]
[341745267,1731184238640,-1458.7036,0.000149,2]
[341745268,1731184238649,-46207.2945348,0.00015,2]
[341745300,1731184238989,-24058.52943134,0.00015,2]
[341745310,1731184239074,-2437.9,0.00015,2]
[341745312,1731184239085,-1540.84930288,0.00015,2]
[341745335,1731184239296,-380.19165465,0.00015,2]
[341745355,1731184239730,-255.0,0.00015,2]
[341745361,1731184240149,-1769.02874,0.00015,2]
[341745362,1731184240160,-2467.17499998,0.00015,2]
[341745363,1731184240172,-1979.79196528,0.00015,2]
[341745364,1731184240266,-3832.34568759,0.00015,2]
[341745365,1731184240315,-420.0,0.00015,2]
[341745367,1731184241021,-252.82,0.00015,2]
[341745368,1731184241927,-500.0,0.00015,2]
[341745370,1731184243059,-500.0,0.00015,2]
[341745375,1731184243197,-600.60254389,0.00015,2]
[341745376,1731184243255,-22583.99999998,0.00015,2]
[341745377,1731184243368,-3258.52100198,0.00015,2]
[341745379,1731184246969,-361.85082039,0.00015,2]
[341745380,1731184247001,-21024.59014689,0.00015,2]
[341745382,1731184255266,-150.0,0.00014135,2]
[341745383,1731184255288,-32856.37834535,0.00015,2]
[341745384,1731184255854,-500.0,0.00015,2]
[341745385,1731184256481,-500.0,0.00015,2]
[341745386,1731184257642,-151.12603076,0.00015,2]
[341745387,1731184257820,-500.0,0.00015,2]
[341745388,1731184258179,-500.0,0.00015,2]
[341745389,1731184259202,-33006.37834535,0.00015,2]
[341745390,1731184328651,150.24865567,0.0001204,2]
[341745391,1731184334652,-218.9538469,0.00014499,2]
[341745392,1731184334699,-173.68850135,0.00014499,2]
[341745393,1731184334743,-2285.8774,0.000149,2]
[341745394,1731184335011,-500.0,0.00014973,2]
[341745395,1731184335057,-2418.24616666,0.00014999,2]
[341745396,1731184335107,-604.22184428,0.00014999,2]
[341745397,1731184335154,-300.0,0.00014999,2]
[341745398,1731184335200,-5529382.47036038,0.00015,2]
[341745399,1731184415112,33765.91856556,0.000236,30]
[341745401,1731184467140,150.0,0.00011288,2]